[Event "*** Titled Tuesday Blitz"]
[Site "Chess.com"]
[Date "2021.02.16"]
[Round "6"]
[White "dozer80"]
[Black "Mihnea2017"]
[Result "0-1"]
[WhiteElo "2603"]
[BlackElo "2469"]
[TimeControl "180+1"]
[EndTime "11:09:11 PST"]
[Termination "Mihnea2017 won by resignation"]

1. e4 {[%clk 0:03:00.9]} 1... c5 {[%clk 0:02:59.7]} 2. Nf3 {[%clk 0:03:00.6]}
2... Nc6 {[%clk 0:03:00]} 3. Nc3 {[%clk 0:03:00.3]} 3... e5 {[%clk 0:02:58.9]}
4. Bc4 {[%clk 0:02:59.7]} 4... Be7 {[%clk 0:02:58.8]} 5. d3 {[%clk 0:02:59.9]}
5... Nf6 {[%clk 0:02:58.4]} 6. Nd2 {[%clk 0:02:59.4]} 6... d6 {[%clk 0:02:53.4]}
7. Nf1 {[%clk 0:02:59.6]} 7... Bg4 {[%clk 0:02:53.3]} 8. f3 {[%clk 0:02:58.3]}
8... Be6 {[%clk 0:02:52.5]} 9. Ne3 {[%clk 0:02:58.9]} 9... O-O {[%clk
0:02:51.6]} 10. O-O {[%clk 0:02:58.8]} 10... Nh5 {[%clk 0:02:50.4]} 11. g3
{[%clk 0:02:54.5]} 11... Bg5 {[%clk 0:02:47.5]} 12. Ncd5 {[%clk 0:02:54.7]}
12... Bxe3+ {[%clk 0:02:24.6]} 13. Bxe3 {[%clk 0:02:53]} 13... Na5 {[%clk
0:01:45.1]} 14. g4 {[%clk 0:02:42.2]} 14... Nxc4 {[%clk 0:01:41.2]} 15. dxc4
{[%clk 0:02:42.4]} 15... Nf4 {[%clk 0:01:31.8]} 16. Bxf4 {[%clk 0:02:39.1]}
16... exf4 {[%clk 0:01:31.7]} 17. b3 {[%clk 0:02:32.5]} 17... Qg5 {[%clk
0:01:17.3]} 18. Qd2 {[%clk 0:02:24.7]} 18... Bxd5 {[%clk 0:01:16.8]} 19. cxd5
{[%clk 0:02:23]} 19... b5 {[%clk 0:01:12.3]} 20. a4 {[%clk 0:02:21.8]} 20... b4
{[%clk 0:01:09.9]} 21. a5 {[%clk 0:02:22.3]} 21... Qe5 {[%clk 0:01:09]} 22. Qd3
{[%clk 0:02:21]} 22... h5 {[%clk 0:01:06.1]} 23. gxh5 {[%clk 0:02:18.4]} 23...
Qxh5 {[%clk 0:01:04.2]} 24. Rf2 {[%clk 0:02:18.7]} 24... g6 {[%clk 0:01:02.2]}
25. Rg2 {[%clk 0:02:17.6]} 25... Kg7 {[%clk 0:01:00.8]} 26. Re1 {[%clk
0:02:14.7]} 26... Qe5 {[%clk 0:01:00.4]} 27. Rg4 {[%clk 0:02:11.4]} 27... f5
{[%clk 0:00:43.7]} 28. Rg5 {[%clk 0:02:02.5]} 28... Qf6 {[%clk 0:00:41]} 29. Rg2
{[%clk 0:01:59.8]} 29... Rae8 {[%clk 0:00:40.6]} 30. Rge2 {[%clk 0:01:50.1]}
30... fxe4 {[%clk 0:00:33]} 31. Rxe4 {[%clk 0:01:51]} 31... Rxe4 {[%clk
0:00:32.9]} 32. Rxe4 {[%clk 0:01:50.9]} 32... Qa1+ {[%clk 0:00:25.2]} 33. Kg2
{[%clk 0:01:50.2]} 33... Qxa5 {[%clk 0:00:24.9]} 34. Re6 {[%clk 0:01:36.9]}
34... Rf6 {[%clk 0:00:23.9]} 35. Qe4 {[%clk 0:01:37.5]} 35... Qd8 {[%clk
0:00:20.7]} 36. h4 {[%clk 0:01:29.5]} 36... Rxe6 {[%clk 0:00:12.1]} 37. dxe6
{[%clk 0:01:30.4]} 37... Qe7 {[%clk 0:00:11.7]} 38. Kh3 {[%clk 0:01:30]} 38...
Kf6 {[%clk 0:00:10.8]} 39. Qxf4+ {[%clk 0:01:29.7]} 39... Kxe6 {[%clk
0:00:11.2]} 40. Kg2 {[%clk 0:01:18.7]} 40... Qf6 {[%clk 0:00:10.4]} 41. Qe4+
{[%clk 0:01:18.1]} 41... Kf7 {[%clk 0:00:10.2]} 42. Qb7+ {[%clk 0:01:17.7]}
42... Qe7 {[%clk 0:00:10.6]} 43. Qd5+ {[%clk 0:01:15.5]} 43... Kg7 {[%clk
0:00:11]} 44. Kh3 {[%clk 0:01:11.5]} 44... Qf7 {[%clk 0:00:10.2]} 45. Qxd6
{[%clk 0:01:06.8]} 45... Qxf3+ {[%clk 0:00:10.2]} 46. Kh2 {[%clk 0:01:07.2]}
46... Qf2+ {[%clk 0:00:09.5]} 47. Kh3 {[%clk 0:01:06.5]} 47... Qe3+ {[%clk
0:00:08.5]} 48. Kh2 {[%clk 0:00:59.2]} 48... a5 {[%clk 0:00:08.8]} 49. Qc7+
{[%clk 0:00:49.2]} 49... Kh6 {[%clk 0:00:08.9]} 50. Qd8 {[%clk 0:00:47.8]} 50...
Qf4+ {[%clk 0:00:05]} 51. Kg2 {[%clk 0:00:46.7]} 51... Qg4+ {[%clk 0:00:04.6]}
52. Kf1 {[%clk 0:00:45.8]} 52... Qf4+ {[%clk 0:00:04.6]} 53. Ke2 {[%clk
0:00:42.8]} 53... Kh5 {[%clk 0:00:04.7]} 54. Qd5+ {[%clk 0:00:37.6]} 54... Qf5
{[%clk 0:00:04.7]} 55. Qd8 {[%clk 0:00:28.3]} 55... Qe4+ {[%clk 0:00:04.3]} 56.
Kf1 {[%clk 0:00:27]} 56... Qxh4 {[%clk 0:00:04.2]} 57. Qh8+ {[%clk 0:00:24.2]}
57... Kg4 {[%clk 0:00:04.5]} 58. Qc8+ {[%clk 0:00:23.7]} 58... Kg3 {[%clk
0:00:04.2]} 59. Qc7+ {[%clk 0:00:22.4]} 59... Qf4+ {[%clk 0:00:04.4]} 60. Qxf4+
{[%clk 0:00:22.8]} 60... Kxf4 {[%clk 0:00:05.3]} 61. Ke2 {[%clk 0:00:23.5]}
61... Ke4 {[%clk 0:00:06.2]} 62. Kf2 {[%clk 0:00:24.4]} 62... Kd4 {[%clk
0:00:06.8]} 63. Kg3 {[%clk 0:00:25.3]} 63... Kc3 {[%clk 0:00:07.3]} 64. Kg4
{[%clk 0:00:26.2]} 64... Kxc2 {[%clk 0:00:08.1]} 65. Kg5 {[%clk 0:00:27.1]}
65... Kxb3 {[%clk 0:00:09]} 66. Kxg6 {[%clk 0:00:28]} 66... a4 {[%clk
0:00:09.9]} 0-1

[Event "*** Titled Tuesday Blitz"]
[Site "Chess.com"]
[Date "2021.02.16"]
[Round "6"]
[White "LamaChampetre"]
[Black "korkmaz16"]
[Result "0-1"]
[WhiteElo "2204"]
[BlackElo "2389"]
[TimeControl "180+1"]
[EndTime "11:09:12 PST"]
[Termination "korkmaz16 won on time"]

1. d4 {[%clk 0:03:00.9]} 1... d5 {[%clk 0:02:58.3]} 2. c4 {[%clk 0:03:00.6]}
2... e5 {[%clk 0:02:53.2]} 3. dxe5 {[%clk 0:02:59.5]} 3... d4 {[%clk 0:02:50.5]}
4. Nf3 {[%clk 0:02:59.5]} 4... Nc6 {[%clk 0:02:43]} 5. a3 {[%clk 0:02:58.4]}
5... Nge7 {[%clk 0:02:36.2]} 6. b4 {[%clk 0:02:56]} 6... Ng6 {[%clk 0:02:31.5]}
7. Bb2 {[%clk 0:02:56]} 7... a5 {[%clk 0:02:27.8]} 8. b5 {[%clk 0:02:52.8]} 8...
Ncxe5 {[%clk 0:02:24.7]} 9. Nxe5 {[%clk 0:02:52.1]} 9... Nxe5 {[%clk 0:02:20.5]}
10. e3 {[%clk 0:02:52.2]} 10... Be6 {[%clk 0:02:10.3]} 11. Bxd4 {[%clk
0:02:49.9]} 11... Nxc4 {[%clk 0:02:05.6]} 12. Qc2 {[%clk 0:02:49.2]} 12... Nd6
{[%clk 0:02:02.8]} 13. Bd3 {[%clk 0:02:45.4]} 13... Qg5 {[%clk 0:02:00]} 14. f4
{[%clk 0:02:43.6]} 14... Qh4+ {[%clk 0:01:56.6]} 15. g3 {[%clk 0:02:42.6]} 15...
Qh3 {[%clk 0:01:56.4]} 16. Nc3 {[%clk 0:02:31.3]} 16... Rd8 {[%clk 0:01:35]} 17.
Ne4 {[%clk 0:01:48.1]} 17... Bd5 {[%clk 0:00:41.5]} 18. Nxd6+ {[%clk 0:00:46.4]}
18... Bxd6 {[%clk 0:00:29.3]} 19. Be4 {[%clk 0:00:45.6]} 19... Qe6 {[%clk
0:00:19.8]} 20. Bxd5 {[%clk 0:00:45]} 20... Qxd5 {[%clk 0:00:17.4]} 21. O-O
{[%clk 0:00:40.7]} 21... O-O {[%clk 0:00:16.8]} 22. Qb2 {[%clk 0:00:37]} 22...
f6 {[%clk 0:00:15.5]} 23. Rad1 {[%clk 0:00:36.3]} 23... Qe4 {[%clk 0:00:15.5]}
24. Qb3+ {[%clk 0:00:33.1]} 24... Kh8 {[%clk 0:00:15.1]} 25. b6 {[%clk
0:00:29.8]} 25... c5 {[%clk 0:00:14.8]} 26. Bb2 {[%clk 0:00:28]} 26... a4 {[%clk
0:00:14.9]} 27. Qc3 {[%clk 0:00:25.8]} 27... Rfe8 {[%clk 0:00:13.7]} 28. Rd3
{[%clk 0:00:20.3]} 28... c4 {[%clk 0:00:13.7]} 29. Rd4 {[%clk 0:00:17.3]} 29...
Qxe3+ {[%clk 0:00:14.2]} 30. Qxe3 {[%clk 0:00:15.1]} 30... Rxe3 {[%clk
0:00:15.1]} 31. Rxc4 {[%clk 0:00:15.4]} 31... Bxa3 {[%clk 0:00:13.8]} 32. Bxa3
{[%clk 0:00:14.2]} 32... Rxa3 {[%clk 0:00:14.7]} 33. Rfc1 {[%clk 0:00:14.6]}
33... h6 {[%clk 0:00:13.5]} 34. Rc8 {[%clk 0:00:13.8]} 34... Rxc8 {[%clk
0:00:13.1]} 35. Rxc8+ {[%clk 0:00:14.7]} 35... Kh7 {[%clk 0:00:14]} 36. Rc7
{[%clk 0:00:15.5]} 36... Ra1+ {[%clk 0:00:14.3]} 37. Kg2 {[%clk 0:00:15.2]}
37... a3 {[%clk 0:00:14.9]} 38. Rxb7 {[%clk 0:00:15.5]} 38... a2 {[%clk
0:00:15.3]} 39. Ra7 {[%clk 0:00:15.8]} 39... Rb1 {[%clk 0:00:15.8]} 40. Rxa2
{[%clk 0:00:12]} 40... Rxb6 {[%clk 0:00:16.4]} 41. Re2 {[%clk 0:00:12.3]} 41...
h5 {[%clk 0:00:16.5]} 42. h3 {[%clk 0:00:12.1]} 42... Rb3 {[%clk 0:00:15.9]} 43.
Rf2 {[%clk 0:00:10.1]} 43... Kg6 {[%clk 0:00:15.2]} 44. Re2 {[%clk 0:00:10.3]}
44... Kf5 {[%clk 0:00:15.4]} 45. Rc2 {[%clk 0:00:10.1]} 45... h4 {[%clk
0:00:13.6]} 46. Rc5+ {[%clk 0:00:08.9]} 46... Ke4 {[%clk 0:00:14]} 47. Rc4+
{[%clk 0:00:06.2]} 47... Kd5 {[%clk 0:00:13.5]} 48. Rc7 {[%clk 0:00:05.9]} 48...
Rxg3+ {[%clk 0:00:13.5]} 49. Kf2 {[%clk 0:00:05.1]} 49... Ke4 {[%clk 0:00:11.6]}
50. Re7+ {[%clk 0:00:03.6]} 50... Kf5 {[%clk 0:00:11.8]} 51. Ra7 {[%clk
0:00:02.8]} 51... Kxf4 {[%clk 0:00:12.1]} 52. Ra4+ {[%clk 0:00:02.4]} 52... Kg5
{[%clk 0:00:12.4]} 53. Ra5+ {[%clk 0:00:02.3]} 53... Kh6 {[%clk 0:00:12.1]} 54.
Ra4 {[%clk 0:00:02.5]} 54... Rxh3 {[%clk 0:00:11.6]} 55. Kg2 {[%clk 0:00:01.3]}
55... Rg3+ {[%clk 0:00:11.9]} 56. Kh2 {[%clk 0:00:01.1]} 56... g5 {[%clk
0:00:12.4]} 0-1

[Event "*** Titled Tuesday Blitz"]
[Site "Chess.com"]
[Date "2021.02.16"]
[Round "6"]
[White "ZiggyStardust64"]
[Black "Taran2004"]
[Result "1-0"]
[WhiteElo "2583"]
[BlackElo "2408"]
[TimeControl "180+1"]
[EndTime "11:09:13 PST"]
[Termination "ZiggyStardust64 won by resignation"]

1. c4 {[%clk 0:03:00.9]} 1... Nf6 {[%clk 0:02:59.7]} 2. Nc3 {[%clk 0:03:00.2]}
2... g6 {[%clk 0:02:59.7]} 3. e4 {[%clk 0:03:00.2]} 3... d6 {[%clk 0:02:58.2]}
4. d4 {[%clk 0:03:00.1]} 4... Bg7 {[%clk 0:02:58.2]} 5. f3 {[%clk 0:03:00.4]}
5... O-O {[%clk 0:02:57.8]} 6. Be3 {[%clk 0:03:01.1]} 6... c5 {[%clk 0:02:58.1]}
7. Nge2 {[%clk 0:03:01.2]} 7... Nc6 {[%clk 0:02:58]} 8. d5 {[%clk 0:03:01.6]}
8... Ne5 {[%clk 0:02:58.6]} 9. Ng3 {[%clk 0:03:02.3]} 9... h5 {[%clk 0:02:56.5]}
10. Be2 {[%clk 0:03:01.7]} 10... a6 {[%clk 0:02:56]} 11. O-O {[%clk 0:03:00.2]}
11... e6 {[%clk 0:02:52.1]} 12. a4 {[%clk 0:02:38.3]} 12... exd5 {[%clk
0:02:50.9]} 13. cxd5 {[%clk 0:02:38.6]} 13... Bd7 {[%clk 0:02:46]} 14. Qd2
{[%clk 0:02:38.5]} 14... b5 {[%clk 0:02:44.6]} 15. axb5 {[%clk 0:02:37]} 15...
axb5 {[%clk 0:02:45.5]} 16. Nxb5 {[%clk 0:02:36]} 16... Rxa1 {[%clk 0:02:42.4]}
17. Rxa1 {[%clk 0:02:35.6]} 17... Qb6 {[%clk 0:02:42.7]} 18. Nc3 {[%clk
0:02:28.6]} 18... Rb8 {[%clk 0:02:40.5]} 19. Nd1 {[%clk 0:02:26.5]} 19... Bb5
{[%clk 0:02:33.6]} 20. Qa5 {[%clk 0:02:12.1]} 20... Qxa5 {[%clk 0:02:28]} 21.
Rxa5 {[%clk 0:02:11.7]} 21... Bxe2 {[%clk 0:02:28.5]} 22. Nxe2 {[%clk
0:02:10.7]} 22... Nc4 {[%clk 0:02:28.4]} 23. Ra2 {[%clk 0:02:07.1]} 23... Nd7
{[%clk 0:02:21]} 24. Bc1 {[%clk 0:02:05.4]} 24... Nde5 {[%clk 0:02:18.4]} 25.
Nf2 {[%clk 0:02:03.6]} 25... Rb3 {[%clk 0:02:03.1]} 26. Nc3 {[%clk 0:01:57.6]}
26... Nd7 {[%clk 0:01:54]} 27. Ncd1 {[%clk 0:01:53.6]} 27... Bd4 {[%clk
0:01:48.4]} 28. Kf1 {[%clk 0:01:51.7]} 28... Nde5 {[%clk 0:01:47.9]} 29. f4
{[%clk 0:01:38.5]} 29... Nd3 {[%clk 0:01:32.4]} 30. Nxd3 {[%clk 0:01:38.4]}
30... Rxd3 {[%clk 0:01:33.3]} 31. Ke2 {[%clk 0:01:39]} 31... Rb3 {[%clk
0:01:32.6]} 32. Ra6 {[%clk 0:01:19.1]} 32... Kf8 {[%clk 0:01:08.5]} 33. Ra4
{[%clk 0:01:18]} 33... Nb6 {[%clk 0:00:49.4]} 34. Ra3 {[%clk 0:01:17.3]} 34...
Rb5 {[%clk 0:00:43.2]} 35. Kd3 {[%clk 0:01:01.9]} 35... Bg7 {[%clk 0:00:32.7]}
36. g3 {[%clk 0:00:54.8]} 36... c4+ {[%clk 0:00:32.8]} 37. Kc2 {[%clk
0:00:54.5]} 37... f5 {[%clk 0:00:31.1]} 38. exf5 {[%clk 0:00:50.6]} 38... gxf5
{[%clk 0:00:30.9]} 39. Ra7 {[%clk 0:00:26.8]} 39... Nxd5 {[%clk 0:00:28.9]} 40.
Bd2 {[%clk 0:00:27.5]} 40... Nb4+ {[%clk 0:00:25.1]} 41. Bxb4 {[%clk 0:00:27.1]}
41... Rxb4 {[%clk 0:00:25.1]} 42. Rd7 {[%clk 0:00:24.6]} 42... Rb6 {[%clk
0:00:22]} 43. Rc7 {[%clk 0:00:15.3]} 43... d5 {[%clk 0:00:19.6]} 44. Rc5 {[%clk
0:00:13.5]} 44... Rd6 {[%clk 0:00:16.7]} 45. Ne3 {[%clk 0:00:12.4]} 45... Bd4
{[%clk 0:00:16.9]} 46. Rc8+ {[%clk 0:00:12.2]} 46... Ke7 {[%clk 0:00:16.4]} 47.
Nxf5+ {[%clk 0:00:13.1]} 47... Kd7 {[%clk 0:00:16.4]} 48. Nxd6 {[%clk
0:00:13.5]} 48... Kxd6 {[%clk 0:00:17.3]} 49. Rg8 {[%clk 0:00:11.6]} 49... Bg1
{[%clk 0:00:16.5]} 50. h3 {[%clk 0:00:11.2]} 50... d4 {[%clk 0:00:17]} 51. Rg5
{[%clk 0:00:08.8]} 51... d3+ {[%clk 0:00:16.8]} 52. Kc3 {[%clk 0:00:07.8]} 52...
Ke6 {[%clk 0:00:16.1]} 53. Kxc4 {[%clk 0:00:07.4]} 53... d2 {[%clk 0:00:15.7]}
54. Rd5 {[%clk 0:00:07.6]} 54... Bf2 {[%clk 0:00:15]} 55. Rxd2 {[%clk
0:00:06.8]} 55... Bxg3 {[%clk 0:00:15.4]} 56. Rd5 {[%clk 0:00:06.6]} 56... h4
{[%clk 0:00:13.5]} 57. f5+ {[%clk 0:00:06.9]} 57... Kf6 {[%clk 0:00:13.2]} 58.
b4 {[%clk 0:00:07.8]} 58... Be5 {[%clk 0:00:13.7]} 59. b5 {[%clk 0:00:07.6]}
59... Kxf5 {[%clk 0:00:14.4]} 60. b6 {[%clk 0:00:07.9]} 60... Kf4 {[%clk
0:00:14.9]} 61. Rxe5 {[%clk 0:00:08.3]} 61... Kxe5 {[%clk 0:00:15]} 62. b7
{[%clk 0:00:08.3]} 62... Kf4 {[%clk 0:00:15.9]} 63. b8=Q+ {[%clk 0:00:09.2]}
63... Kf3 {[%clk 0:00:15.9]} 64. Qg8 {[%clk 0:00:09.6]} 1-0

[Event "*** Titled Tuesday Blitz"]
[Site "Chess.com"]
[Date "2021.02.16"]
[Round "6"]
[White "maxip32"]
[Black "MarcoRiehle"]
[Result "1/2-1/2"]
[WhiteElo "2511"]
[BlackElo "2684"]
[TimeControl "180+1"]
[EndTime "11:09:15 PST"]
[Termination "Game drawn by repetition"]

1. e4 {[%clk 0:03:00.9]} 1... e5 {[%clk 0:02:59.5]} 2. f4 {[%clk 0:02:52.7]}
2... exf4 {[%clk 0:03:00.4]} 3. Bc4 {[%clk 0:02:49.9]} 3... Ne7 {[%clk
0:02:59.6]} 4. Nc3 {[%clk 0:02:44.4]} 4... c6 {[%clk 0:02:58.9]} 5. d4 {[%clk
0:02:41.3]} 5... d5 {[%clk 0:02:58.6]} 6. exd5 {[%clk 0:02:41.6]} 6... Nxd5
{[%clk 0:02:58.9]} 7. Nxd5 {[%clk 0:02:41.5]} 7... cxd5 {[%clk 0:02:59.8]} 8.
Bb5+ {[%clk 0:02:41.3]} 8... Nc6 {[%clk 0:02:58]} 9. Qe2+ {[%clk 0:02:23.8]}
9... Be6 {[%clk 0:02:51.1]} 10. Bxf4 {[%clk 0:02:20.3]} 10... Be7 {[%clk
0:02:46.3]} 11. Nf3 {[%clk 0:02:14.6]} 11... O-O {[%clk 0:02:42.6]} 12. O-O
{[%clk 0:02:07.7]} 12... Qb6 {[%clk 0:02:41.8]} 13. c3 {[%clk 0:02:05.4]} 13...
Bf6 {[%clk 0:02:34.8]} 14. Bd3 {[%clk 0:02:00.9]} 14... Rfe8 {[%clk 0:02:33.6]}
15. Qc2 {[%clk 0:01:49.1]} 15... h6 {[%clk 0:02:31]} 16. Kh1 {[%clk 0:01:44.4]}
16... Rac8 {[%clk 0:02:29]} 17. Qb3 {[%clk 0:01:41]} 17... Qxb3 {[%clk
0:02:15.2]} 18. axb3 {[%clk 0:01:41.9]} 18... a6 {[%clk 0:02:15.8]} 19. b4
{[%clk 0:01:40.8]} 19... Na7 {[%clk 0:02:10.6]} 20. Ne5 {[%clk 0:01:25.3]} 20...
Kf8 {[%clk 0:01:57]} 21. h3 {[%clk 0:01:21.6]} 21... Rcd8 {[%clk 0:01:41.8]} 22.
Nf3 {[%clk 0:01:19.1]} 22... Bd7 {[%clk 0:01:36.3]} 23. Rfe1 {[%clk 0:01:06.2]}
23... Bb5 {[%clk 0:01:32.3]} 24. Bc2 {[%clk 0:01:04.2]} 24... Nc6 {[%clk
0:01:29]} 25. Nd2 {[%clk 0:00:54.7]} 25... g5 {[%clk 0:01:27.7]} 26. Bg3 {[%clk
0:00:52.7]} 26... Bxd4 {[%clk 0:01:13.8]} 27. cxd4 {[%clk 0:00:25.2]} 27... Nxd4
{[%clk 0:01:14.7]} 28. Bb3 {[%clk 0:00:22.8]} 28... Ne2 {[%clk 0:01:14.5]} 29.
Kh2 {[%clk 0:00:20.5]} 29... d4 {[%clk 0:01:12.9]} 30. Bd1 {[%clk 0:00:18.7]}
30... d3 {[%clk 0:01:11.4]} 31. Bxe2 {[%clk 0:00:17.8]} 31... dxe2 {[%clk
0:01:12.3]} 32. Nf3 {[%clk 0:00:17.9]} 32... Re3 {[%clk 0:01:09.1]} 33. Rac1
{[%clk 0:00:17]} 33... f6 {[%clk 0:01:03.7]} 34. Rc7 {[%clk 0:00:15.8]} 34...
Bc6 {[%clk 0:00:58.2]} 35. Kg1 {[%clk 0:00:10.9]} 35... Bxf3 {[%clk 0:00:54.6]}
36. gxf3 {[%clk 0:00:10.8]} 36... Rxf3 {[%clk 0:00:55.5]} 37. Kg2 {[%clk
0:00:09.6]} 37... Rdd3 {[%clk 0:00:49.1]} 38. Bf2 {[%clk 0:00:08.6]} 38... Rf5
{[%clk 0:00:39.5]} 39. Rxe2 {[%clk 0:00:08.1]} 39... Re5 {[%clk 0:00:34]} 40.
Rxe5 {[%clk 0:00:07.6]} 40... fxe5 {[%clk 0:00:34.9]} 41. Rxb7 {[%clk
0:00:07.5]} 41... Rb3 {[%clk 0:00:34.7]} 42. Ra7 {[%clk 0:00:05.4]} 42... e4
{[%clk 0:00:32]} 43. Rxa6 {[%clk 0:00:04.6]} 43... Rxb2 {[%clk 0:00:32.3]} 44.
Kf1 {[%clk 0:00:04.8]} 44... h5 {[%clk 0:00:29.1]} 45. Bc5+ {[%clk 0:00:04.5]}
45... Kf7 {[%clk 0:00:28.7]} 46. Rh6 {[%clk 0:00:04.5]} 46... h4 {[%clk
0:00:27.4]} 47. Rh7+ {[%clk 0:00:03.5]} 47... Kg6 {[%clk 0:00:27.9]} 48. Re7
{[%clk 0:00:03.8]} 48... Kf5 {[%clk 0:00:27.7]} 49. Re8 {[%clk 0:00:02.3]} 49...
Rb3 {[%clk 0:00:25.6]} 50. Kg2 {[%clk 0:00:02.6]} 50... Rb2+ {[%clk 0:00:25.8]}
51. Kf1 {[%clk 0:00:02.8]} 51... Kf4 {[%clk 0:00:24.9]} 52. Rf8+ {[%clk
0:00:01.8]} 52... Kg3 {[%clk 0:00:24.9]} 53. Be3 {[%clk 0:00:01.8]} 53... Rxb4
{[%clk 0:00:17.9]} 54. Bxg5 {[%clk 0:00:01.6]} 54... Kxh3 {[%clk 0:00:18.4]} 55.
Ke2 {[%clk 0:00:01.8]} 55... Kg4 {[%clk 0:00:18.1]} 56. Bxh4 {[%clk 0:00:02.1]}
56... Kxh4 {[%clk 0:00:17]} 57. Ke3 {[%clk 0:00:03]} 57... Kg5 {[%clk
0:00:17.5]} 58. Rf1 {[%clk 0:00:02.3]} 58... Ra4 {[%clk 0:00:16.7]} 59. Rf2
{[%clk 0:00:02.7]} 59... Rb4 {[%clk 0:00:14.6]} 60. Rf1 {[%clk 0:00:03.1]} 60...
Kg6 {[%clk 0:00:14.7]} 61. Rf2 {[%clk 0:00:04]} 61... Kg5 {[%clk 0:00:14.6]} 62.
Rf1 {[%clk 0:00:04.9]} 1/2-1/2

[Event "*** Titled Tuesday Blitz"]
[Site "Chess.com"]
[Date "2021.02.16"]
[Round "6"]
[White "Sjakkerntobi"]
[Black "sergeikim"]
[Result "0-1"]
[WhiteElo "2325"]
[BlackElo "2524"]
[TimeControl "180+1"]
[EndTime "11:09:17 PST"]
[Termination "sergeikim won by checkmate"]

1. e4 {[%clk 0:03:00.9]} 1... e5 {[%clk 0:02:59.9]} 2. Nf3 {[%clk 0:02:59.5]}
2... Nc6 {[%clk 0:02:59.9]} 3. Bb5 {[%clk 0:03:00.2]} 3... a6 {[%clk 0:02:59.6]}
4. Ba4 {[%clk 0:03:00.3]} 4... Nf6 {[%clk 0:02:59.7]} 5. O-O {[%clk 0:03:00.8]}
5... b5 {[%clk 0:02:59.8]} 6. Bb3 {[%clk 0:03:00.9]} 6... Bc5 {[%clk 0:03:00.2]}
7. c3 {[%clk 0:03:00.6]} 7... d6 {[%clk 0:03:00.3]} 8. d4 {[%clk 0:03:00.5]}
8... Bb6 {[%clk 0:03:00.4]} 9. Be3 {[%clk 0:02:58.6]} 9... Bg4 {[%clk
0:02:53.6]} 10. Nbd2 {[%clk 0:02:41.1]} 10... O-O {[%clk 0:02:47.5]} 11. h3
{[%clk 0:02:21.3]} 11... Bh5 {[%clk 0:02:47]} 12. g4 {[%clk 0:02:13.5]} 12...
Bg6 {[%clk 0:02:46.2]} 13. Nh4 {[%clk 0:02:04.3]} 13... exd4 {[%clk 0:02:40.2]}
14. cxd4 {[%clk 0:02:01.5]} 14... Nxd4 {[%clk 0:02:26.6]} 15. Nxg6 {[%clk
0:02:00.6]} 15... hxg6 {[%clk 0:02:25]} 16. Nf3 {[%clk 0:01:42.2]} 16... Nxb3
{[%clk 0:02:22.1]} 17. Qxb3 {[%clk 0:01:43.1]} 17... Nxe4 {[%clk 0:02:13.1]} 18.
Bxb6 {[%clk 0:01:38.1]} 18... cxb6 {[%clk 0:02:12.6]} 19. Rfe1 {[%clk
0:01:38.1]} 19... Re8 {[%clk 0:01:30.9]} 20. Rad1 {[%clk 0:01:35.9]} 20... Qf6
{[%clk 0:01:11.3]} 21. Qd3 {[%clk 0:01:18.8]} 21... Nc5 {[%clk 0:01:06]} 22. Qd5
{[%clk 0:01:16.3]} 22... Rad8 {[%clk 0:00:56.9]} 23. Ng5 {[%clk 0:00:56.1]}
23... Ne6 {[%clk 0:00:42.8]} 24. Nxe6 {[%clk 0:00:50.2]} 24... Rxe6 {[%clk
0:00:42.7]} 25. Rxe6 {[%clk 0:00:46.9]} 25... Qxe6 {[%clk 0:00:41.9]} 26. Qc6
{[%clk 0:00:47.6]} 26... d5 {[%clk 0:00:39]} 27. Qc7 {[%clk 0:00:42.3]} 27...
Qd6 {[%clk 0:00:36.4]} 28. Qb7 {[%clk 0:00:39]} 28... a5 {[%clk 0:00:34.4]} 29.
a3 {[%clk 0:00:30.5]} 29... d4 {[%clk 0:00:33.8]} 30. Qe4 {[%clk 0:00:28.7]}
30... d3 {[%clk 0:00:32.2]} 31. Rd2 {[%clk 0:00:29.3]} 31... Qd5 {[%clk
0:00:29.4]} 32. Qxd5 {[%clk 0:00:28.6]} 32... Rxd5 {[%clk 0:00:28.7]} 33. Kg2
{[%clk 0:00:29.3]} 33... Rd4 {[%clk 0:00:28.2]} 34. Kf3 {[%clk 0:00:29.2]} 34...
b4 {[%clk 0:00:28.4]} 35. Ke3 {[%clk 0:00:28.2]} 35... Rc4 {[%clk 0:00:24.9]}
36. axb4 {[%clk 0:00:28.5]} 36... Rxb4 {[%clk 0:00:24.4]} 37. Kxd3 {[%clk
0:00:22.8]} 37... Rb3+ {[%clk 0:00:23.8]} 38. Kc4 {[%clk 0:00:11.1]} 38... Rxh3
{[%clk 0:00:24.7]} 39. Rd6 {[%clk 0:00:11.3]} 39... Rf3 {[%clk 0:00:23.5]} 40.
Rxb6 {[%clk 0:00:11]} 40... Rxf2 {[%clk 0:00:23.5]} 41. Rb5 {[%clk 0:00:10.8]}
41... Rf4+ {[%clk 0:00:23]} 42. Kc3 {[%clk 0:00:10.8]} 42... a4 {[%clk
0:00:20.7]} 43. Rb4 {[%clk 0:00:09.1]} 43... Rxb4 {[%clk 0:00:20.1]} 44. Kxb4
{[%clk 0:00:10]} 44... f5 {[%clk 0:00:20.1]} 45. gxf5 {[%clk 0:00:10.9]} 45...
gxf5 {[%clk 0:00:20.6]} 46. Kxa4 {[%clk 0:00:11.8]} 46... Kf7 {[%clk 0:00:20.8]}
47. Kb3 {[%clk 0:00:11.3]} 47... Ke7 {[%clk 0:00:21.1]} 48. Kc3 {[%clk
0:00:12.2]} 48... Kd6 {[%clk 0:00:21.5]} 49. Kd3 {[%clk 0:00:13.1]} 49... Kc5
{[%clk 0:00:21.2]} 50. Ke3 {[%clk 0:00:14]} 50... g5 {[%clk 0:00:21.3]} 51. Kd3
{[%clk 0:00:13.7]} 51... Kb4 {[%clk 0:00:22.2]} 52. Kc2 {[%clk 0:00:13.6]} 52...
g4 {[%clk 0:00:21.5]} 53. Kd2 {[%clk 0:00:12.4]} 53... f4 {[%clk 0:00:21.3]} 54.
Kd3 {[%clk 0:00:11.7]} 54... g3 {[%clk 0:00:22.2]} 55. Ke2 {[%clk 0:00:11.3]}
55... Kb3 {[%clk 0:00:22.3]} 56. Kf3 {[%clk 0:00:11.2]} 56... Kxb2 {[%clk
0:00:21.9]} 57. Kg2 {[%clk 0:00:12.1]} 57... Kc3 {[%clk 0:00:21.4]} 58. Kf3
{[%clk 0:00:13]} 58... Kd3 {[%clk 0:00:21.8]} 59. Kg2 {[%clk 0:00:12.9]} 59...
Ke2 {[%clk 0:00:22]} 60. Kg1 {[%clk 0:00:12.3]} 60... f3 {[%clk 0:00:22.2]} 61.
Kh1 {[%clk 0:00:13.2]} 61... f2 {[%clk 0:00:22.2]} 62. Kg2 {[%clk 0:00:12.7]}
62... f1=Q+ {[%clk 0:00:23.1]} 63. Kxg3 {[%clk 0:00:13.6]} 63... Qf5 {[%clk
0:00:24]} 64. Kh4 {[%clk 0:00:13.7]} 64... Ke3 {[%clk 0:00:22.2]} 65. Kg3 {[%clk
0:00:13.7]} 65... Qg5+ {[%clk 0:00:22]} 66. Kh3 {[%clk 0:00:13.4]} 66... Kf3
{[%clk 0:00:22.1]} 67. Kh2 {[%clk 0:00:14.3]} 67... Qg2# {[%clk 0:00:22.3]} 0-1